bitfinex-derivatives/quotes_ETHF0:USTF0_20260104
["timestamp","ask_amount","ask_price","bid_price","bid_amount"]
[1767495963359,0.00477373,3142.8,3142.1,0.13667242]
[1767495965256,0.00477373,3142.8,3142.2,0.84502514]
[1767495965657,0.15912,3143.5,3142.5,0.13667242]
[1767495966754,0.16225442,3143.5,3142.7,0.00477373]
[1767495969557,0.00313442,3143.5,3142.7,0.00477373]
[1767495971664,0.00313442,3143.5,3142.9,0.70835272]
[1767495971968,0.00477373,3143.4,3142.7,0.14144615]
[1767495976975,0.00477373,3143.4,3142.7,0.00477373]
[1767495977875,0.70835272,3143.3,3142.7,0.00477373]
[1767495978571,0.70835272,3143.3,3142.5,0.00251039]
[1767495979774,0.70835272,3143.3,3142.6,0.00477373]
[1767495982275,0.70835272,3143.0,3141.9,0.13667242]
[1767495982476,0.70835272,3143.0,3141.6,0.13667242]
[1767495983382,0.70835272,3143.0,3142.0,0.00477373]
[1767495983676,0.14953981,3143.4,3142.0,0.00477373]
[1767495983977,0.70835272,3143.3,3142.0,0.00477373]
[1767495988179,0.70835272,3143.0,3142.0,0.00477373]
[1767495990485,0.14476608,3143.3,3142.0,0.00477373]
[1767495999584,0.14155826,3143.1,3142.0,0.00477373]
[1767495999789,0.14155826,3143.0,3142.0,0.00477373]
[1767496039822,0.15915,3143.1,3142.0,0.00477373]
[1767496041224,0.14536875,3143.4,3142.0,0.00477373]
[1767496052550,0.13494222,3143.3,3142.0,0.71231561]
[1767496053239,0.13494222,3143.3,3142.2,0.70754188]
[1767496061359,0.57840933,3144.2,3142.3,0.13201887]
[1767496061656,0.13494222,3144.0,3142.8,0.70754188]
[1767496061842,0.13494222,3144.0,3142.6,0.70754188]
[1767496062047,0.70754188,3143.3,3142.0,0.00477373]
[1767496062247,0.13494222,3143.4,3142.0,0.71231561]
[1767496062550,0.00477373,3143.0,3142.1,0.70754188]
[1767496067841,0.0037079,3143.4,3142.4,0.70754188]
[1767496068850,0.00477373,3143.2,3142.4,0.70754188]
[1767496072051,0.00477373,3143.2,3142.6,0.70754188]
[1767496076967,0.00477373,3143.2,3142.4,0.83956075]
[1767496077157,0.00477373,3143.2,3142.4,6.83956075]
[1767496085167,0.0037079,3143.4,3142.4,6.0]
[1767496085470,0.0037079,3143.4,3142.8,0.84291677]
[1767496085872,3.89944744,3144.2,3142.8,0.84291677]
[1767496086372,9.89944744,3144.2,3142.8,0.84291677]
[1767496086557,0.00318246,3143.8,3142.8,0.84291677]
[1767496086757,0.00644838,3143.8,3142.8,0.84291677]
[1767496089266,0.00644838,3143.8,3143.1,0.70754188]
[1767496090381,0.00644838,3143.8,3142.9,0.70754188]
[1767496092881,0.00644838,3143.8,3142.9,0.84291677]
[1767496093077,0.57840933,3144.2,3143.1,0.84291677]
[1767496094072,0.58134181,3144.2,3143.1,0.84291677]
[1767496097082,0.58134181,3144.2,3143.3,0.70754188]
[1767496098389,0.58134181,3144.2,3143.1,0.13537489]
[1767496104291,0.58134181,3144.2,3143.1,0.84291677]
[1767496111904,0.58134181,3144.2,3143.1,0.13537489]
[1767496112101,0.14070255,3143.7,3142.0,0.13853634]
[1767496112295,0.14070255,3143.7,3142.1,0.84130449]
[1767496112495,0.14070255,3143.7,3142.1,0.13376261]
[1767496112696,1.00723624,3143.7,3142.0,0.00477373]
[1767496112905,0.14070255,3143.6,3142.0,0.00477373]
[1767496116409,0.14070255,3143.6,3142.0,0.13853634]
[1767496119818,0.14070255,3144.0,3142.1,0.13376261]
[1767496120006,0.14070255,3144.0,3142.2,0.13376261]
[1767496124915,0.70741369,3143.3,3141.6,5.63852428]
[1767496125110,0.14070255,3143.2,3141.6,0.0027229]
[1767496126113,0.00477373,3142.7,3142.1,0.00477373]
[1767496145437,0.13519064,3143.7,3142.2,0.14319927]
[1767496150839,0.13519064,3143.7,3142.1,0.00477373]
[1767496154650,0.13519064,3143.5,3142.1,0.00477373]
[1767496170659,0.13519064,3143.5,3141.6,0.0027229]
[1767496170660,6.0,3143.5,3141.6,0.0027229]
[1767496170868,0.14516364,3142.1,3140.5,5.63580138]
[1767496171565,0.14516364,3142.1,3140.6,0.13625666]
[1767496171966,0.14516364,3142.1,3140.6,0.13888311]
[1767496172161,0.00477373,3141.7,3141.0,0.00477373]
[1767496172366,0.00722051,3141.7,3141.0,0.00477373]
[1767496174464,0.00722051,3141.7,3141.0,0.7127696]
[1767496178768,0.00722051,3141.7,3141.2,0.70799587]
[1767496180857,0.14452233,3142.5,3141.6,0.70799587]
[1767496181061,0.14452233,3142.5,3141.2,0.1449809]
[1767496181062,0.14452233,3142.5,3141.4,0.70799587]
[1767496181262,0.14452233,3143.2,3141.6,0.70799587]
[1767496181462,0.14452233,3143.2,3141.5,0.1449809]
[1767496181463,0.70799587,3143.1,3141.7,0.70799587]
[1767496181663,0.70799587,3142.9,3141.5,0.85297677]
[1767496181869,0.71056796,3142.9,3141.5,0.85297677]
[1767496182064,0.85509029,3142.9,3141.5,0.85297677]
[1767496182670,0.14452233,3142.8,3141.5,0.70799587]
[1767496185373,0.00257209,3142.9,3142.0,0.70799587]
[1767496185676,0.00257209,3142.9,3142.1,0.70799587]
[1767496187270,0.00257209,3142.9,3141.9,0.70799587]
[1767496189782,0.71056796,3142.9,3141.5,0.70799587]
[1767496191174,0.71056796,3142.9,3141.7,0.70799587]
[1767496191381,0.00257209,3142.9,3141.7,0.70799587]
[1767496192676,0.00257209,3142.9,3141.9,0.70799587]
[1767496197389,0.00257209,3142.9,3141.7,0.70799587]
[1767496198386,0.00257209,3142.9,3141.5,0.1449809]
[1767496198682,0.00257209,3142.9,3141.7,0.70799587]
[1767496198887,0.00257209,3142.9,3141.7,0.85297677]
[1767496199191,0.00257209,3142.9,3141.8,0.1449809]
[1767496199889,0.00257209,3142.9,3141.9,0.70799587]
[1767496201989,0.00257209,3142.9,3141.9,0.85043261]
[1767496202192,0.70799587,3143.6,3142.3,0.14243674]
[1767496202383,0.70799587,3143.8,3142.6,0.00477373]
[1767496202983,6.0,3143.7,3142.6,0.7127696]
[1767496203187,0.00296,3143.7,3142.8,0.70799587]
[1767496203492,0.00296,3143.7,3142.8,0.00338153]
[1767496204091,6.00296,3143.7,3142.8,0.00338153]
[1767496204291,0.00296,3143.7,3142.8,0.00338153]
[1767496205688,0.00296,3143.7,3143.0,0.70799587]
[1767496205883,0.00296,3143.7,3142.8,0.85381414]
[1767496206182,0.00296,3143.7,3143.0,0.70799587]
[1767496206388,0.00296,3143.7,3142.8,0.85381414]
[1767496207281,0.00296,3143.7,3142.8,0.14581827]
[1767496207492,0.00296,3143.7,3142.8,0.85381414]
[1767496210885,0.70799587,3144.5,3143.2,0.70799587]
[1767496211092,4.09207,3144.6,3143.2,0.70799587]
[1767496211287,0.70799587,3144.5,3143.2,0.70799587]
[1767496211886,0.00280761,3144.5,3143.2,0.70799587]
[1767496214087,0.00280761,3144.5,3143.6,0.70799587]
[1767496214294,0.00280761,3144.5,3143.8,0.70799587]
[1767496214682,0.00280761,3144.5,3143.6,0.85043261]
[1767496215997,0.71080348,3144.5,3143.2,0.85043261]
[1767496216196,0.70799587,3144.3,3143.2,0.14243674]
[1767496216992,0.70799587,3144.3,3142.8,0.85381414]
[1767496217291,0.70799587,3144.3,3143.0,0.70799587]
[1767496220092,0.8447616,3144.5,3143.2,0.70799587]
[1767496221006,0.71080348,3144.5,3143.2,0.85043261]
[1767496221396,0.71080348,3144.5,3143.2,0.14243674]
[1767496221595,0.00280761,3144.5,3143.2,0.85043261]
[1767496221783,0.00280761,3144.5,3143.3,0.14243674]
[1767496222186,0.00280761,3144.5,3143.5,0.70799587]
[1767496223095,0.00280761,3144.5,3143.5,0.85043261]
[1767496223781,0.00280761,3144.5,3143.7,0.70799587]
[1767496223984,0.00280761,3144.5,3143.5,0.85043261]
[1767496224796,0.00280761,3144.5,3143.7,0.70799587]
[1767496227289,0.13395812,3145.7,3144.4,0.70799587]
[1767496227491,0.70799587,3145.3,3144.7,0.00477373]
[1767496227694,0.84195399,3145.3,3143.8,0.70799587]
[1767496228195,0.84195399,3145.3,3143.8,0.85043261]
[1767496228390,0.84568624,3145.3,3143.8,0.85043261]
[1767496228694,0.00477373,3144.9,3144.2,0.00477373]
[1767496229888,0.00477373,3144.9,3144.2,0.7127696]
[1767496230490,0.00373225,3145.3,3144.2,0.7127696]
[1767496231397,0.00373225,3145.3,3144.2,0.00477373]
[1767496232391,0.00373225,3145.3,3144.2,0.84653864]
[1767496232589,0.00373225,3145.3,3144.3,0.13376904]
[1767496246197,0.00373225,3145.3,3144.2,0.00477373]
[1767496249398,0.00373225,3145.3,3144.2,0.13854277]
[1767496269016,0.14282494,3146.0,3144.2,0.13854277]
[1767496269218,1.00697892,3145.9,3144.6,0.13537716]
[1767496269525,0.15899,3146.2,3144.6,0.13537716]
[1767496269729,1.00681532,3146.1,3144.6,0.13537716]
[1767496270025,0.00312275,3146.1,3144.6,0.13537716]
[1767496296635,0.00312275,3146.1,3144.9,0.7062073]
[1767496301453,0.00312275,3146.1,3144.6,0.84158446]
[1767496301651,0.00312275,3146.1,3144.7,0.14320293]
[1767496301853,0.00312275,3146.1,3144.8,0.7062073]
[1767496302958,0.00312275,3146.1,3144.8,0.84941023]
[1767496305466,0.00312275,3146.1,3144.9,0.14320293]
[1767496314175,0.00312275,3146.1,3145.2,0.14320293]
[1767496314476,0.00312275,3146.1,3145.3,0.84941023]
[1767496314774,0.00312275,3146.1,3145.6,0.7062073]
[1767496315074,1.00761719,3146.9,3145.6,0.84941023]
[1767496315286,1.0067084,3146.8,3145.9,0.00477373]
[1767496315586,1.0067084,3146.7,3145.9,0.00477373]
[1767496315774,1.00761719,3146.9,3145.9,0.00477373]
[1767496315971,0.00401386,3146.7,3145.9,0.00477373]
[1767496318086,0.00401386,3146.7,3145.6,0.11797666]
[1767496319088,0.00477373,3146.5,3145.8,0.00477373]
[1767496319580,0.00377373,3146.5,3145.8,0.00477373]
[1767496321184,0.00277373,3146.5,3145.8,0.00477373]
[1767496324786,0.00177373,3146.5,3145.8,0.00477373]
[1767496325384,0.00077373,3146.5,3145.8,0.00477373]
[1767496326085,0.00378759,3146.7,3145.8,0.00477373]
[1767496337192,0.00378759,3146.7,3145.9,0.7062073]
[1767496339894,0.00378759,3146.7,3146.1,0.7062073]
[1767496340096,4.57460474,3147.3,3146.1,0.7062073]
[1767496341087,4.577361,3147.3,3146.1,0.7062073]
[1767496341287,0.00275626,3147.3,3146.4,0.7062073]
[1767496341797,0.00275626,3147.3,3145.8,0.1434721]
[1767496341798,0.00275626,3147.3,3146.2,0.7062073]
[1767496343505,0.00275626,3147.3,3146.5,0.7062073]
[1767496343711,0.00275626,3147.3,3146.2,0.84490567]
[1767496343712,0.00275626,3147.3,3146.3,0.13869837]
[1767496344303,0.71040508,3147.7,3146.3,0.13869837]
[1767496344491,0.1589,3148.0,3146.9,0.7062073]
[1767496344812,0.1589,3148.0,3146.7,0.84490567]
[1767496345489,0.16220674,3148.0,3146.7,0.84490567]
[1767496345906,0.16220674,3148.0,3146.8,0.13869837]
[1767496346199,0.00330674,3148.0,3147.1,0.7062073]
[1767496348004,0.00330674,3148.0,3147.3,0.7062073]
[1767496348592,0.00330674,3148.0,3147.1,0.7062073]
[1767496350908,0.00330674,3148.0,3147.3,0.7062073]
[1767496354515,0.8650773,3148.7,3147.4,0.13776223]
[1767496354811,0.8650773,3148.7,3147.7,0.00476576]
[1767496355501,0.86818524,3148.7,3147.7,0.00843886]
[1767496356316,0.16197794,3148.7,3147.7,0.71464616]
[1767496357014,0.00310794,3148.7,3147.9,0.7062073]
[1767496357605,0.00310794,3148.7,3147.7,0.14620109]
[1767496357803,0.00310794,3148.7,3148.0,0.7062073]
[1767496358010,0.00310794,3148.7,3148.2,0.7062073]
[1767496358219,0.15883,3149.4,3148.5,0.7062073]
[1767496358506,0.7062073,3151.0,3148.2,0.84396953]
[1767496358507,4.434,3149.9,3148.3,0.13776223]
[1767496359303,4.43672489,3149.9,3148.3,0.13776223]
[1767496361105,0.00272489,3149.9,3148.6,0.13776223]
[1767496363620,0.13886183,3149.9,3148.0,0.13776223]
[1767496366018,0.13886183,3149.9,3148.1,0.70454381]
[1767496366221,0.13886183,3149.9,3148.2,0.13776223]
[1767496367018,0.13613694,3149.8,3148.2,0.13776223]
[1767496367406,0.13613694,3149.6,3147.8,0.13776223]
[1767496368219,0.13613694,3149.6,3147.9,0.13776223]
[1767496369811,0.13613694,3149.6,3147.7,0.00843886]
[1767496370406,0.13613694,3149.4,3147.7,0.14620109]
[1767496373818,0.15882,3149.6,3148.2,0.13776223]
[1767496374120,0.00272489,3149.9,3148.2,0.13776223]
[1767496377013,0.13886183,3149.9,3148.2,0.13776223]
[1767496381125,0.99580536,3149.8,3148.2,0.13776223]
[1767496381324,0.13886183,3149.9,3148.2,0.13776223]
[1767496381524,0.99612938,3149.8,3148.2,0.13776223]
[1767496381719,0.13886183,3149.9,3148.2,0.13776223]
[1767496381919,0.99612464,3149.8,3148.2,0.13776223]
[1767496382119,0.13886183,3149.9,3148.2,0.13776223]
[1767496382329,0.99619542,3149.8,3148.2,0.13776223]
[1767496382518,0.13886183,3149.9,3148.2,0.13776223]
[1767496382823,0.99649886,3149.8,3148.2,0.13776223]
[1767496383019,0.13886183,3149.9,3148.2,0.13776223]
[1767496383224,0.99649886,3149.8,3148.2,0.13776223]
[1767496383421,0.13886183,3149.9,3148.2,0.13776223]
[1767496383619,0.99691361,3149.8,3148.2,0.13776223]
[1767496383825,0.00272489,3149.9,3148.2,0.13776223]
[1767496384029,0.99691337,3149.8,3148.2,0.13776223]
[1767496384217,0.00272489,3149.9,3148.2,0.13776223]
[1767496384419,0.9974533,3149.8,3148.2,0.13776223]
[1767496384623,0.00272489,3149.9,3148.2,0.13776223]
[1767496384829,0.99743775,3149.8,3148.2,0.13776223]
[1767496385021,0.00272489,3149.9,3148.2,0.13776223]
[1767496385222,0.99744044,3149.8,3148.2,0.13776223]
[1767496385422,0.00272489,3149.9,3148.2,0.13776223]
[1767496385622,0.99804483,3149.8,3148.2,0.13776223]
[1767496385929,0.00272489,3149.9,3148.2,0.13776223]
[1767496386229,0.99804394,3149.8,3148.2,0.13776223]
[1767496386430,0.99804394,3149.7,3148.2,0.13776223]
[1767496386620,0.00272489,3149.9,3148.2,0.13776223]
[1767496386822,0.99870861,3149.8,3148.2,0.13776223]
[1767496387023,0.99870861,3149.7,3148.2,0.13776223]
[1767496387230,0.00272489,3149.9,3148.2,0.13776223]
[1767496387433,0.99922112,3149.8,3148.2,0.13776223]
[1767496387618,0.99922112,3149.7,3148.2,0.13776223]
[1767496387930,0.00272489,3149.9,3148.2,0.13776223]
[1767496388229,0.99921842,3149.8,3148.2,0.13776223]
[1767496388420,0.99921842,3149.7,3148.2,0.13776223]
[1767496388620,0.00272489,3149.9,3148.2,0.13776223]
[1767496388933,0.99954352,3149.8,3148.2,0.13776223]
[1767496389125,0.99954352,3149.7,3148.2,0.13776223]
[1767496389323,0.00272489,3149.9,3148.2,0.13776223]
[1767496389626,1.70856472,3150.5,3149.0,0.13412586]
[1767496389823,0.99945128,3150.4,3149.4,0.00476576]
[1767496390024,0.99945128,3150.3,3149.4,0.00476576]
[1767496390220,0.99945128,3150.2,3149.4,0.00476576]
[1767496390426,0.99945128,3150.1,3149.4,0.00476576]
[1767496390734,0.00384554,3150.1,3149.4,0.00476576]
[1767496391329,0.14032783,3150.0,3148.4,0.15888]
[1767496392536,0.00473921,3149.5,3148.9,0.00476576]
[1767496395741,0.14032783,3149.4,3147.7,0.29670896]
[1767496396438,0.14032783,3149.4,3147.8,0.13412586]
[1767496396640,0.14032783,3149.4,3148.3,0.00476576]
[1767496397637,6.14032783,3149.4,3148.3,0.00476576]
[1767496397846,0.14032783,3149.3,3148.3,0.00476576]
[1767496400046,0.14032783,3149.3,3147.7,0.0036731]
[1767496401139,0.14032783,3149.3,3148.2,0.00476576]
[1767496402233,0.14032783,3149.1,3148.2,0.00476576]
[1767496403640,6.14032783,3149.1,3148.2,0.00476576]
[1767496403840,0.14032783,3149.0,3148.2,0.00476576]
[1767496404045,6.0,3149.1,3148.2,0.00476576]
[1767496404851,6.14032783,3149.1,3148.2,0.00476576]
[1767496405138,0.29915783,3149.3,3148.2,0.00476576]
[1767496405347,0.14032783,3149.2,3148.2,0.00476576]
[1767496411849,0.00384554,3150.1,3148.3,6.26312573]
[1767496412142,0.00384554,3150.1,3148.9,0.70454381]
[1767496412539,1.344,3150.3,3149.0,6.26312573]
[1767496412746,1.16940556,3150.7,3149.3,0.70454381]
[1767496412948,0.00476576,3150.3,3149.3,0.70454381]
[1767496413648,0.00872225,3150.3,3149.3,0.70454381]
[1767496417948,2.48140556,3150.7,3149.3,0.70454381]
[1767496418158,2.48140556,3150.7,3149.4,6.26312573]
[1767496418343,1.16940556,3150.7,3149.4,6.26312573]
[1767496418949,0.00476576,3150.4,3149.4,6.26312573]
[1767496420346,1.17352781,3150.7,3149.4,6.26312573]
[1767496420547,2.52452781,3150.7,3150.0,0.70397615]
[1767496420852,2.52452781,3150.7,3150.0,0.70624569]
[1767496421056,0.00473921,3150.5,3150.0,0.70624569]
[1767496421753,0.13681284,3150.5,3150.0,0.00226954]
[1767496421952,0.13681284,3150.5,3149.2,0.70397615]
[1767496422148,0.83604978,3150.4,3149.1,0.70397615]
[1767496422360,0.13207363,3150.3,3149.1,0.70397615]
[1767496422568,0.13207363,3150.3,3148.5,0.29817907]
[1767496422754,0.13681284,3150.3,3149.1,0.70397615]
[1767496422955,0.13207363,3150.3,3149.1,0.70628495]
[1767496423250,0.00473921,3150.0,3149.4,0.00476576]
[1767496423656,2.54350497,3150.0,3149.4,0.00476576]
[1767496423854,1.04145418,3150.7,3149.4,0.14407483]
[1767496424059,1.04145418,3150.7,3150.1,0.70397615]
[1767496424758,1.04145418,3150.7,3149.8,0.70397615]
[1767496425159,1.87750396,3150.7,3149.4,0.00476576]
[1767496425464,0.13207363,3150.4,3149.4,0.00476576]
[1767496426559,1.17352781,3150.7,3149.4,0.00476576]
[1767496428958,7.617,3150.6,3149.4,0.00476576]
[1767496429673,1.17352781,3150.7,3149.4,0.00476576]
[1767496429969,4.442,3150.5,3149.4,0.00476576]
[1767496432871,1.17352781,3150.7,3149.4,0.00476576]
[1767496433075,5.688,3150.6,3149.4,0.70874191]
[1767496433273,7.621,3150.5,3149.4,0.70874191]
[1767496433973,1.04145418,3150.7,3149.8,0.70397615]
[1767496434167,4.446,3150.6,3149.8,0.70397615]
[1767496434473,1.04145418,3150.7,3149.8,0.70397615]
[1767496434881,2.865,3150.6,3149.8,0.70397615]
[1767496435176,2.865,3150.6,3149.4,0.00476576]
[1767496436075,1.04145418,3150.7,3149.6,0.70397615]
[1767496436376,3.197,3150.6,3149.6,0.70397615]
[1767496436969,1.04145418,3150.7,3149.6,0.70397615]
[1767496437168,4.446,3150.6,3149.6,0.70397615]
[1767496438669,4.447,3150.5,3149.6,0.70397615]
[1767496440374,1.04145418,3150.7,3149.6,0.70397615]
[1767496440571,3.805,3150.6,3149.6,0.70397615]
[1767496441273,1.04145418,3150.7,3149.4,0.00476576]
[1767496441274,1.04145418,3150.7,3149.9,0.70397615]
[1767496441473,4.448,3150.5,3149.9,0.70397615]
[1767496441776,1.04145418,3150.7,3150.2,0.70397615]
[1767496442173,4.093,3150.6,3150.2,0.70397615]
[1767496442976,1.04145418,3150.7,3150.2,0.70397615]
[1767496443177,3.126,3150.6,3150.2,0.70397615]
[1767496444180,1.04145418,3150.7,3149.5,0.13802053]
[1767496444381,3.19245418,3150.7,3150.1,0.70397615]
[1767496444575,1.04145418,3150.7,3150.1,0.70397615]
[1767496444868,4.16745418,3150.7,3150.1,0.70397615]
[1767496445072,4.449,3150.9,3150.1,0.70397615]
[1767496445376,3.175,3151.4,3150.1,0.70397615]
[1767496445377,4.448,3150.8,3150.1,0.70397615]
[1767496445576,4.448,3150.8,3150.1,0.70297615]
[1767496446280,4.4503712,3150.8,3150.1,0.70297615]
[1767496446478,3.31366194,3151.5,3149.9,0.13802053]
[1767496446686,4.449,3151.4,3150.3,0.70397615]
[1767496447183,4.449,3151.4,3150.3,0.70297615]
[1767496447583,4.45274576,3151.4,3150.3,0.70297615]
[1767496447777,4.449,3151.3,3150.4,0.70397615]
[1767496448878,0.00374576,3151.4,3150.4,0.70397615]
[1767496449085,3.093,3151.3,3149.9,0.13702053]
[1767496449287,3.093,3151.3,3150.4,0.70397615]
[1767496449891,3.23166194,3151.3,3150.2,0.70397615]
[1767496450989,0.13866194,3151.2,3150.2,0.70397615]
[1767496451593,4.449,3151.1,3150.2,0.70397615]
[1767496451887,4.449,3151.1,3149.8,0.13802053]
[1767496452091,4.449,3151.1,3150.3,0.70397615]
[1767496455486,4.449,3151.1,3149.5,0.15882]
[1767496455688,4.449,3151.1,3150.1,0.70397615]
[1767496455989,4.58766194,3151.1,3150.1,0.70397615]
[1767496456795,0.13866194,3150.9,3149.6,0.70397615]
[1767496457892,0.13866194,3150.9,3149.8,0.70397615]
[1767496458478,4.449,3151.1,3150.0,0.70397615]
[1767496458677,4.58766194,3151.1,3150.0,0.70397615]
[1767496462891,0.13866194,3151.1,3150.0,0.70397615]
[1767496463099,1.59,3151.0,3150.0,0.70397615]
[1767496464492,1.72866194,3151.0,3149.5,0.13802053]
[1767496464701,0.13866194,3150.9,3149.6,0.70397615]
[1767496464888,4.451,3150.8,3149.6,0.70397615]
[1767496465083,0.15873,3151.3,3149.6,0.84199668]
[1767496465288,1.1204077,3151.4,3150.5,0.70397615]
[1767496465499,1.1204077,3151.4,3150.2,0.70397615]
[1767496465897,0.1424077,3151.4,3150.7,0.70397615]
[1767496466596,0.00374576,3151.4,3150.7,0.70397615]
[1767496470093,0.00374576,3151.4,3150.3,0.13637449]
[1767496470399,0.14436262,3151.4,3150.0,0.70397615]
[1767496471296,0.14436262,3151.4,3150.3,0.70397615]
[1767496473203,0.14436262,3151.4,3149.8,0.13637449]
[1767496473404,0.14436262,3151.4,3150.2,0.70397615]
[1767496474403,0.14436262,3151.4,3149.4,0.30059164]
[1767496474596,0.1315539,3151.1,3149.8,0.70397615]
[1767496474998,0.1315539,3151.1,3149.4,0.30059164]
[1767496474999,0.1315539,3151.1,3149.7,0.70397615]
[1767496475198,0.1315539,3151.1,3149.5,0.70397615]
[1767496475400,0.1315539,3151.1,3149.8,0.70397615]
[1767496475599,0.1315539,3150.7,3149.4,0.70874191]
[1767496475896,0.1315539,3150.5,3149.4,0.70874191]
[1767496476394,0.1315539,3150.5,3149.4,0.00476576]
[1767496476599,0.1315539,3150.4,3149.4,0.00476576]
[1767496477806,0.1315539,3150.4,3149.4,0.70874191]
[1767496478399,4.452,3150.3,3149.4,0.70874191]
[1767496480201,0.1315539,3150.1,3149.4,0.00239456]
[1767496480504,0.1315539,3150.1,3149.1,0.0023088]
[1767496481509,0.1315539,3150.1,3149.3,0.00476576]
[1767496483212,6.1315539,3150.1,3149.3,0.00476576]
[1767496483411,0.1315539,3150.0,3149.3,0.00476576]
[1767496486017,0.1315539,3150.0,3149.1,0.0023088]
[1767496487114,0.1305539,3150.0,3149.2,0.00476576]
[1767496487613,0.1295539,3150.0,3149.2,0.00476576]
[1767496487915,0.1285539,3150.0,3149.2,0.00476576]
[1767496488212,0.00376576,3149.9,3149.2,0.00476576]
[1767496488515,0.00276576,3149.9,3149.2,0.00476576]
[1767496489010,4.457,3149.8,3149.2,0.00476576]
[1767496489206,4.456,3149.8,3149.2,0.00476576]
[1767496496530,4.456,3149.8,3149.1,0.0023088]
[1767496497625,4.456,3149.8,3149.1,0.00707456]
[1767496499826,4.456,3149.8,3148.5,1.00033781]
[1767496500024,4.59687705,3149.8,3148.5,0.15887]
[1767496500418,0.14087705,3149.7,3148.0,0.74383023]
[1767496500816,0.14087705,3149.7,3148.5,0.00476576]
[1767496501223,4.46,3149.6,3148.5,0.00476576]
[1767496501420,4.46,3149.5,3148.5,0.00476576]
[1767496502017,0.14364281,3149.9,3148.5,0.00476576]
[1767496502218,4.46,3149.8,3148.5,0.00476576]
[1767496502430,0.14364281,3149.9,3148.5,0.00476576]
[1767496502718,0.14364281,3149.9,3148.7,0.70447193]
[1767496502915,1.733,3149.8,3148.7,0.70447193]
[1767496503324,0.14364281,3149.9,3148.7,0.70447193]
[1767496503523,4.46,3149.7,3148.7,0.70447193]
[1767496503725,0.14364281,3149.9,3148.7,0.70447193]
[1767496503926,4.46,3149.8,3148.7,0.70447193]
[1767496504525,4.46,3149.8,3148.5,0.00476576]
[1767496504724,4.46,3149.8,3148.6,0.70447193]
[1767496505430,4.46,3149.8,3148.5,0.00476576]
[1767496505431,0.14087705,3149.7,3148.5,0.00476576]
[1767496508326,0.14087705,3149.6,3148.0,0.70823035]
[1767496508527,0.14087705,3149.6,3148.0,0.00375842]
[1767496509527,0.14087705,3149.3,3148.0,0.00375842]
[1767496510433,4.46,3149.2,3148.3,0.00476576]
[1767496512032,4.46,3149.1,3148.3,0.00476576]
[1767496512232,4.46232746,3149.1,3148.3,0.00476576]
[1767496515735,4.466,3149.0,3148.3,0.00476576]
[1767496516838,0.00232746,3149.1,3148.3,0.00476576]
[1767496517132,4.60687705,3149.0,3148.3,0.00476576]
[1767496517334,0.14087705,3148.9,3148.0,0.00375842]
[1767496518839,0.14087705,3148.9,3147.3,0.15893]
[1767496519841,0.14087705,3148.9,3147.3,0.1629004]
[1767496521436,0.14087705,3148.9,3147.3,0.0039704]
[1767496522350,0.14087705,3148.8,3147.3,0.0039704]
[1767496523941,0.14087705,3148.6,3147.3,0.0039704]
[1767496524340,0.00476576,3148.3,3147.3,0.0039704]
[1767496525330,0.14564281,3148.3,3147.3,0.0039704]
[1767496526145,0.14087705,3148.2,3146.7,0.70447193]
[1767496527142,0.14087705,3148.2,3146.7,0.70810388]
[1767496527844,0.29976705,3148.2,3146.7,0.00363195]
[1767496528144,0.14087705,3148.1,3146.7,0.00363195]
[1767496528345,0.14087705,3147.9,3146.7,0.00363195]
[1767496528548,4.47,3147.8,3146.7,0.00363195]
[1767496529446,4.47,3147.7,3146.9,0.70447193]
[1767496529646,4.47,3147.7,3146.7,0.00363195]
[1767496531347,0.14087705,3148.1,3146.7,0.00363195]
[1767496531348,4.47,3147.6,3146.7,0.00363195]
[1767496533455,4.471,3147.6,3146.7,0.00363195]
[1767496535761,0.14087705,3148.1,3146.7,0.00363195]
[1767496536064,3.836,3148.0,3146.7,0.00363195]
[1767496536657,3.98017964,3148.0,3146.7,0.00363195]
[1767496536867,0.14417964,3148.0,3146.7,0.00363195]
[1767496537163,4.471,3147.9,3146.7,0.00363195]
[1767496538151,0.14417964,3147.8,3146.7,0.00363195]
[1767496538556,4.471,3147.7,3146.7,0.00363195]
[1767496538759,0.14417964,3147.6,3146.7,0.00363195]
[1767496539158,3.405,3147.5,3146.7,0.00363195]
[1767496539761,3.54917964,3147.5,3146.7,0.00363195]
[1767496540154,0.14417964,3147.4,3146.7,0.00363195]
[1767496541066,0.14417964,3147.4,3146.1,0.70447193]
[1767496542070,0.14417964,3147.4,3146.1,0.70780371]
[1767496542471,0.14417964,3147.4,3146.6,0.70557475]
[1767496542662,0.14417964,3147.4,3146.1,0.00333178]
[1767496542863,0.14417964,3147.4,3146.6,0.70557475]
[1767496546072,0.14417964,3147.4,3146.1,0.00333178]
[1767496546273,0.14417964,3147.4,3146.5,0.70557475]
[1767496549279,0.14417964,3147.4,3146.1,0.00333178]
[1767496549472,0.14417964,3147.4,3146.6,0.70557475]
[1767496551271,0.1589,3147.9,3146.2,0.1357344]
[1767496551475,4.38,3147.8,3147.4,0.70557475]
[1767496551679,4.47,3147.7,3147.2,0.70557475]
[1767496553776,0.00476576,3148.3,3147.5,0.70557475]
[1767496553973,4.471,3148.2,3147.5,0.70557475]
[1767496554378,4.471,3148.2,3147.3,0.70557475]
[1767496555078,4.471,3148.1,3147.3,0.70557475]
[1767496555276,0.00476576,3148.3,3147.7,0.70557475]
[1767496555482,4.472,3148.2,3147.7,0.70557475]
[1767496555674,4.472,3148.1,3147.7,0.70557475]
[1767496556073,0.00476576,3148.3,3147.7,0.70557475]
[1767496556274,4.472,3148.2,3147.7,0.69857475]
[1767496558086,0.00476576,3148.3,3147.7,0.69857475]
[1767496558279,4.472,3148.2,3147.7,0.69857475]
[1767496559787,4.472,3148.2,3147.5,0.70557475]
[1767496560487,4.472,3148.2,3147.3,0.70557475]
[1767496561683,4.472,3148.2,3147.2,0.70557475]
[1767496561884,4.61528579,3148.2,3147.2,0.70557475]
[1767496562679,4.61528579,3148.2,3147.0,0.70557475]
[1767496563386,4.61528579,3148.2,3146.7,0.13665381]
[1767496563583,4.61528579,3148.2,3147.1,0.70557475]
[1767496564584,0.14328579,3148.1,3147.1,0.70557475]
[1767496567073,4.472,3148.2,3147.1,0.70557475]
[1767496567893,4.61528579,3148.2,3147.1,0.70557475]
[1767496569690,0.14328579,3148.1,3146.2,0.13665381]
[1767496569890,0.14328579,3147.9,3146.6,0.70557475]
[1767496570089,0.30219579,3147.7,3146.1,0.00333178]
[1767496570291,0.30219579,3147.7,3146.2,0.70557475]
[1767496570292,0.14328579,3147.5,3146.2,0.70557475]
[1767496570495,0.14328579,3147.5,3146.4,0.70557475]
[1767496571096,4.476,3147.4,3146.6,0.70557475]
[1767496571490,0.15891,3147.7,3146.6,0.70557475]
[1767496571994,4.476,3147.6,3146.6,0.70557475]
[1767496573488,4.476,3147.5,3146.6,0.70557475]